[Event "12th Senioren-Cup Tegernsee 2024"]
[Site "Rottach-Egern"]
[Date "2024.04.10"]
[Round "5.1"]
[White "Schneider-Zinner, Harald"]
[Black "Lindam, Ingo"]
[Result "1-0"]
[ECO "E94"]
[WhiteElo "2335"]
[BlackElo "2160"]
[Annotator "TA"]
[PlyCount "117"]
[EventDate "2024.04.02"]
[EventType "swiss"]
[EventCountry "GER"]
[SourceTitle "playchess.com"]
[Source "ChessBase"]
[SourceQuality "1"]
[TimeControl "7800+30"]

{[%evp 24,117,25,15,38,20,39,47,41,20,27,19,25,24,19,19,18,16,21,18,37,41,37,42,43,14,57,50,60,31,90,89,97,95,93,85,95,97,132,124,123,124,139,142,126,128,133,8,151,146,221,221,228,228,342,341,308,202,184,104,104,104,104,104,104,104,104,104,104,104,104,104,104,32,104,0,104,104,104,104,395,394,386,368,2201,1874,1914,1521,6056,7565,12810,29978,29975,29974,29984,29985]} 1. d4 {[%emt 0:00:21]} Nf6 {[%emt 0:00:08]} 2. c4 {[%emt 0:00:46]} g6 {[%emt 0:00:20]} 3. Nc3 {[%emt 0:01:19]} Bg7 {[%emt 0:00:14]} 4. e4 {[%emt 0:00:16]} d6 {[%emt 0:00:02]} 5. Nf3 {[%emt 0:00:59]} O-O {[%emt 0:00:16]} 6. Be2 {[%emt 0:00:15]} Na6 {[%emt 0:00:22]} 7. O-O {[%emt 0:00:30]} e5 {[%emt 0:00:30]} 8. Re1 {[%emt 0:01:48]} c6 {[%emt 0:04:31]} 9. Bf1 {[%emt 0:01:04]} exd4 {[%emt 0:00:49]} 10. Nxd4 {[%emt 0:00:30]} Ng4 {[%emt 0:00:30]} 11. h3 {[%emt 0:00:10]} Qf6 {[%emt 0:06:13]} 12. hxg4 {[%emt 0:03:33]} Qxd4 {[%emt 0:00:25]} 13. Qe2 {[%emt 0:00:10]} Qe5 {[%emt 0:07:37]} 14. g3 {[%emt 0:00:15]} g5 {[%emt 0:10:49]} 15. Be3 {[%emt 0:05:35]} Nc5 {[%emt 0:03:19] White is slightly better.} 16. Rad1 {[%emt 0:03:37]} Nxe4 {[%emt 0:19:50]} 17. Nxe4 {[%emt 0:12:37]} (17. Bd4 {looks sharper.} Nxc3 18. Qf3 Qa5 19. bxc3 Qd8 20. c5) 17... Qxe4 {[%emt 0:00:11]} 18. Bxg5 {[%emt 0:10:57]} Qxe2 {[%emt 0:09:47]} 19. Bxe2 {[%emt 0:00:13]} Bxb2 {[%emt 0:00:42]} 20. Rxd6 {[%emt 0:03:27]} Re8 {[%emt 0:08:07]} 21. Be3 {[%emt 0:00:56]} Be5 {[%emt 0:03:49]} 22. Rd3 {[%emt 0:21:13]} Be6 {[%emt 0:07:32]} 23. Ra3 {[%emt 0:03:47]} a6 {[%emt 0:10:33]} 24. Bb6 {[%emt 0:05:37]} Bd6 {[%emt 0:02:26]} 25. Re3 {[%emt 0:01:26]} Bf8 {[%emt 0:08:44]} 26. Bd3 {[%emt 0:15:39]} Bd7 {[%emt 0:04:56]} ({Black should try} 26... Bb4 $14 27. R1e2 Re7) 27. Rxe8 $16 {[%emt 0:00:41]} Rxe8 {[%emt 0:15:33]} 28. Rxe8 {[%emt 0:00:16]} Bxe8 {[%emt 0:00:01][%mdl 4096] Endgame. KBB-KBB} 29. Bf5 {[%emt 0:00:32] Dodges Bd7. White is more active.} f6 {[%emt 0:03:18]} 30. c5 {[%emt 0:00:54]} Bf7 {[%emt 0:01:24]} 31. a3 {[%emt 0:46:37]} Bd5 {[%emt 0:11:42]} 32. f4 {[%emt 0:00:00]} a5 {[%emt 0:00:58][%cal Ba6a5,Ba5a4][%mdl 32]} 33. Bc8 {[%emt 0:00:00]} ({Inferior is} 33. Bxa5 Bxc5+ 34. Kf1 Bxa3 $19) 33... Kf7 {[%emt 0:00:28]} 34. Bxb7 {[%emt 0:00:00]} a4 {[%emt 0:00:35][%cal Of6f5]} 35. Kf2 {[%emt 0:00:00]} ({White should play} 35. Kh2 $16) 35... Ke7 {[%emt 0:00:33]} (35... f5 $11 {remains equal.}) 36. Ke3 $1 {[%emt 0:00:00]} Kd7 {[%emt 0:00:07]} (36... f5 $16) 37. Ba6 $18 {[%emt 0:00:00]} Be6 {[%emt 0:00:31]} 38. Be2 {[%emt 0:00:00]} f5 {[%emt 0:00:37] [#]} (38... Bb3 {is a better defense.} 39. Bd3 h6 40. Bf5+ Be6) 39. gxf5 $1 {[%emt 0:00:00]} Bxf5 {[%emt 0:00:01]} 40. g4 {[%emt 0:00:00]} Be6 {[%emt 0:00:21]} 41. f5 {[%emt 0:00:00]} (41. Kd2 $18) 41... Bh6+ $16 {[%emt 0:00:23]} 42. Kd3 {[%emt 0:00:00]} Bb3 {[%emt 0:00:16] [#]} 43. Ba5 $1 {[%emt 0:00:00]} Bc1 {[%emt 0:00:36]} 44. Bb4 {[%emt 0:00:00]} Ke7 {[%emt 0:01:23]} 45. Bf3 {[%emt 0:00:00]} Kd7 {[%emt 0:00:16]} 46. Ke2 {[%emt 0:00:00]} Bc4+ {[%emt 0:00:53]} 47. Kf2 {[%emt 0:00:00]} Bf4 {[%emt 0:00:20]} 48. Be2 {[%emt 0:00:00]} (48. Be4 $16) 48... Bd5 {[%emt 0:00:20]} (48... Bxe2 $1 $14 49. Kxe2 Bc1) 49. Bf3 {[%emt 0:00:00] Strongly threatening Bxd5.} Bc4 {[%emt 0:00:42]} 50. Kg2 {[%emt 0:00:00]} h6 {[%emt 0:00:49]} 51. Kf2 {[%emt 0:00:00]} Bf7 $2 {[%emt 0:00:33][%mdl 8192] This costs Black the game.} (51... Bc1 $16) 52. Bd1 $18 {[%emt 0:00:00]} Bb3 {[%emt 0:00:16]} 53. Ke2 {[%emt 0:00:00]} ({Worse is} 53. Kf3 Bc1 54. Ke2 Bc4+ 55. Kf2 Bb5 $14) 53... Bc1 $2 {[%emt 0:00:47]} (53... Bf7 54. Kd3 (54. Bxa4 h5 $18) 54... Bc1 55. Bxa4 h5 56. gxh5 Bxh5) 54. Bxb3 {[%emt 0:00:00]} axb3 {[%emt 0:00:01]} 55. Kd3 {[%emt 0:00:00] Black must now prevent a4.} Ke7 {[%emt 0:00:26]} 56. a4 {[%emt 0:00:00][%cal Ba3a4,Ba4a5][%mdl 32]} Kf6 {[%emt 0:00:50]} 57. a5 {[%emt 0:00:00]} Bf4 {[%emt 0:00:21]} 58. Bc3+ {[%emt 0:00:00]} Kg5 {[%emt 0:00:28]} 59. Bd2 {[%emt 0:00:00] Weighted Error Value: White=0.14 (very precise) /Black=0.32.  Loses game:     	---       	Black=1      Mistake:       	White=3     	Black=6      Inaccurate:     	White=3     	Black=2      OK:         	White=16    	Black=12     Best:        	White=5     	Black=2      Strong:       	White=2     	---} 1-0

[Event "12th Senioren-Cup Tegernsee 2024"]
[Site "Rottach-Egern"]
[Date "2024.04.10"]
[Round "5.2"]
[White "Kannenberg, Karl-Heinz"]
[Black "Heinbuch, Detlef Ulrich"]
[Result "0-1"]
[ECO "D00"]
[WhiteElo "2108"]
[BlackElo "2273"]
[Annotator "TA"]
[PlyCount "122"]
[EventDate "2024.04.02"]
[EventType "swiss"]
[EventCountry "GER"]
[SourceTitle "playchess.com"]
[Source "ChessBase"]
[SourceQuality "1"]
[TimeControl "7800+30"]

{[%evp 26,122,12,5,12,-45,-41,-30,-36,-37,-37,-32,-41,-64,-62,-64,-58,-58,-61,-81,-84,-83,-89,-91,-78,-97,-97,-97,-94,-72,-71,-72,-66,-89,-62,-61,-58,-65,-25,-54,0,-72,0,0,0,0,0,0,0,0,0,-29,0,0,0,0,0,-58,-14,0,0,-95,-75,-135,-137,-147,-134,-265,-254,-447,-428,-414,-137,-552,-516,-828,-828,-827,-809,-700,-550,-1553,-1504,-2581,-1925,-2356,-2918,-2349,-1747,-1261,-1213,-29962,-29966,-29977,-29979,-29979,-29980,-29980,-29981]} 1. d4 {[%emt 0:00:04]} Nf6 {[%emt 0:00:09]} 2. Nf3 {[%emt 0:00:07]} g6 {[%emt 0:00:20]} 3. Nc3 {[%emt 0:00:35]} d5 {[%emt 0:01:11]} 4. Bf4 {[%emt 0:00:19]} Bg7 {[%emt 0:02:49]} 5. Nb5 {[%emt 0:00:23]} Na6 {[%emt 0:00:51]} 6. e3 {[%emt 0:01:33] D00: 1 d4 d5: Unusual lines.} O-O {[%emt 0:05:14]} 7. h3 {[%emt 0:03:56]} c6 {[%emt 0:21:52]} 8. Nc3 {[%emt 0:01:27]} Nc7 {[%emt 0:10:18]} 9. Be2 {[%emt 0:02:24]} a5 {[%emt 0:00:31]} 10. a4 {[%emt 0:06:06]} Na6 {[%emt 0:03:57]} 11. O-O {[%emt 0:05:32]} Bf5 {[%emt 0:06:22]} 12. Bd3 $146 {[%emt 0:05:12]} ({Predecessor:} 12. g4 Bc8 13. Ne5 Ne8 14. e4 dxe4 15. Nxe4 Nf6 16. Nxf6+ exf6 17. Nc4 Nc7 18. c3 Nd5 19. Bg3 f5 20. Bf3 {0-1 Pribylnova,E (2065)-Dmitrienko,A (2278) Sibiria Region-ch 2003 (2)}) 12... Bxd3 {[%emt 0:05:34]} 13. Qxd3 {[%emt 0:05:55]} Re8 {[%emt 0:06:17]} 14. Be5 {[%emt 0:07:39]} Qc8 {[%emt 0:08:49]} 15. e4 {[%emt 0:02:23]} (15. Rac1 $11) 15... Nb4 $15 {[%emt 0:03:02]} 16. Qe2 {[%emt 0:00:33]} dxe4 {[%emt 0:01:38]} 17. Nxe4 {[%emt 0:00:16]} Qf5 {[%emt 0:01:17]} 18. Nc5 {[%emt 0:07:25]} b6 {[%emt 0:02:20]} 19. Nd3 {[%emt 0:00:29]} Nxd3 {[%emt 0:01:07]} 20. cxd3 {[%emt 0:01:59]} Nd5 {[%emt 0:02:08]} 21. Bxg7 {[%emt 0:05:41]} Kxg7 {[%emt 0:00:27]} 22. Qe5+ {[%emt 0:00:32]} f6 {[%emt 0:55:17]} 23. Qxf5 {[%emt 0:05:56]} gxf5 {[%emt 0:00:00]} 24. Rac1 {[%emt 0:03:57]} Rac8 {[%emt 0:00:00]} 25. Rfe1 {[%emt 0:00:35]} Kf7 {[%emt 0:00:00]} 26. Kf1 {[%emt 0:06:21]} Rg8 {[%emt 0:00:00]} 27. Red1 {[%emt 0:00:52]} Ke8 {[%emt 0:00:00]} 28. Rc4 {[%emt 0:01:17]} Kd7 {[%emt 0:00:00]} 29. Rdc1 {[%emt 0:02:05]} Kd6 {[%emt 0:00:00]} 30. Ne1 {[%emt 0:02:02]} Rc7 {[%emt 0:00:00]} 31. Nc2 {[%emt 0:03:48]} Nf4 {[%emt 0:00:00]} 32. Ne1 {[%emt 0:09:41]} Nd5 {[%emt 0:00:00]} 33. Nc2 $1 {[%emt 0:00:48]} Ra8 {[%emt 0:00:00]} (33... f4 $17) 34. Ne3 $11 {[%emt 0:00:48]} f4 {[%emt 0:00:00]} 35. Nxd5 {[%emt 0:01:55]} Kxd5 {[%emt 0:00:00]} 36. Ke2 {[%emt 0:00:22]} e5 {[%emt 0:00:00]} 37. dxe5 {[%emt 0:00:54]} fxe5 {[%emt 0:00:00]} 38. Kf3 {[%emt 0:00:47]} Re8 {[%emt 0:00:00]} 39. Re1 {[%emt 0:02:38]} Re6 {[%emt 0:00:00]} 40. Rce4 {[%emt 0:00:59]} c5 {[%emt 0:00:00]} 41. b3 {[%emt 0:00:10]} (41. g3 $11 fxg3 42. fxg3) 41... Rb7 {[%emt 0:00:00]} 42. g3 {[%emt 0:05:04]} fxg3 {[%emt 0:00:00]} 43. Kxg3 {[%emt 0:00:37]} (43. fxg3 $11 {was the only way to keep the balance.} b5 44. Ke3) 43... Rg7+ {[%emt 0:00:00]} 44. Rg4 {[%emt 0:07:52]} ({White should play} 44. Kf3) 44... Rxg4+ $17 {[%emt 0:00:00]} 45. hxg4 {[%emt 0:00:52]} Kd4 {[%emt 0:00:00]} 46. g5 {[%emt 0:00:39]} (46. Re3 $17) 46... h6 $19 {[%emt 0:00:00]} (46... Kxd3 47. Rh1 Kc2 48. Rxh7 Kxb3 49. Rh6 $17) 47. Kg4 $2 {[%emt 0:00:48]} (47. gxh6 Rxh6 (47... Kxd3 $2 48. Rh1 $18) 48. Kg4) 47... Rg6 {[%emt 0:00:00]} (47... Kxd3 48. Kf5 Re8 (48... Rc6 $2 49. g6 $18) 49. gxh6 (49. Rxe5 $2 {loses.} Rxe5+ 50. Kxe5 hxg5 $19) 49... Rf8+ 50. Kg6 (50. Kxe5 Re8+ 51. Kd6 Rxe1 $19) 50... Rxf2 51. Rxe5 $16) 48. Re4+ {[%emt 0:07:35]} Kd5 $2 {[%emt 0:00:00]} (48... Kxd3 $19 49. Re3+ Kd4) 49. Kh5 $2 {[%emt 0:10:55][%mdl 8192]} (49. Kf3 $17 {is more resistant.}) 49... Rxg5+ $19 {[%emt 0:00:00]} 50. Kxh6 {[%emt 0:00:09]} (50. Kh4 $142) 50... Rg1 $19 {[%emt 0:00:00]} 51. Kh5 {[%emt 0:01:05]} Rf1 {[%emt 0:08:17]} 52. Re2 {[%emt 0:00:39]} Kd4 {[%emt 0:00:46]} 53. Re4+ {[%emt 0:00:58]} Kxd3 {[%emt 0:02:20]} 54. Rxe5 {[%emt 0:00:11]} Rxf2 {[%emt 0:00:03]} 55. Re6 {[%emt 0:00:14]} Rb2 {[%emt 0:00:40]} 56. Rxb6 {[%emt 0:00:11]} Kc3 {[%emt 0:00:19]} 57. Rb5 {[%emt 0:00:28]} Rxb3 {[%emt 0:00:12]} 58. Rxa5 {[%emt 0:03:48]} c4 {[%emt 0:00:19]} 59. Ra8 {[%emt 0:00:55]} Kb2 {[%emt 0:00:15]} 60. a5 {[%emt 0:01:16]} c3 {[%emt 0:00:22]} 61. a6 {[%emt 0:01:43]} c2 {[%emt 0:00:39]} 0-1

[Event "12th Senioren-Cup Tegernsee 2024"]
[Site "Rottach-Egern"]
[Date "2024.04.10"]
[Round "5.4"]
[White "Belke, Frank"]
[Black "Moritz, Hartmut"]
[Result "1-0"]
[ECO "D53"]
[WhiteElo "2163"]
[BlackElo "2012"]
[Annotator "TA"]
[PlyCount "89"]
[EventDate "2024.04.02"]
[EventType "swiss"]
[EventCountry "GER"]
[SourceTitle "playchess.com"]
[Source "ChessBase"]
[SourceQuality "1"]
[TimeControl "7800+30"]

{[%evp 13,89,11,13,17,59,59,93,18,50,51,41,54,60,36,91,95,104,100,131,34,154,137,155,93,160,133,126,129,126,99,102,84,137,141,240,242,243,229,193,89,162,101,95,90,211,208,220,215,213,155,166,173,164,153,133,138,164,144,243,207,464,469,858,897,806,626,598,652,605,592,786,760,909,875,1440,1380,1772,1526]} 1. d4 {[%emt 0:00:03]} d5 {[%emt 0:00:37]} 2. c4 {[%emt 0:00:04]} e6 {[%emt 0:00:36]} 3. Nc3 {[%emt 0:00:03]} Nf6 {[%emt 0:00:22]} 4. Bg5 {[%emt 0:00:06]} Be7 {[%emt 0:00:22]} 5. Nf3 {[%emt 0:00:08]} Nbd7 {[%emt 0:01:02]} 6. e3 {[%emt 0:00:16]} c6 {[%emt 0:01:13]} 7. Qc2 {[%emt 0:00:06]} a6 {[%emt 0:06:31]} 8. a3 {[%emt 0:00:11]} b5 {[%emt 0:06:33]} 9. c5 {[%emt 0:05:03]} e5 {[%emt 0:14:53]} 10. b4 {[%emt 0:00:08]} (10. Nxe5 $6 Nxe5 11. dxe5 Nd7 $11) (10. dxe5 $16 Ng8 11. Bxe7 Nxe7 12. b4) 10... e4 {[%emt 0:00:58]} 11. Nd2 {[%emt 0:00:09]} h6 {[%emt 0:07:00]} 12. Bh4 {[%emt 0:01:58]} g5 {[%emt 0:05:17]} 13. Bg3 {[%emt 0:00:03]} h5 {[%emt 0:00:30]} (13... Nh5 $1 $14) 14. h4 $16 {[%emt 0:04:29]} gxh4 {[%emt 0:13:05]} 15. Bxh4 {[%emt 0:00:09]} Ng4 {[%emt 0:00:59]} 16. Bg3 {[%emt 0:02:19]} ({Better is} 16. Bxe7 $16 Qxe7 17. a4 bxa4 (17... Qf6 $2 18. Ndxe4 dxe4 19. axb5 $18) 18. Qxa4 (18. Rxa4 Kf8 $11) (18. Nxa4 Qf6 $11)) 16... Ndf6 {[%emt 0:10:03]} (16... Nf8 $14) 17. Nb3 {[%emt 0:01:11]} Be6 {[%emt 0:05:47]} 18. O-O-O {[%emt 0:02:07]} (18. Bf4 $142) 18... Qd7 {[%emt 0:04:27]} (18... h4 $142) 19. Kb2 {[%emt 0:06:27]} Bd8 {[%emt 0:02:22]} 20. Be2 {[%emt 0:01:08]} Bc7 {[%emt 0:01:39]} 21. Bxc7 {[%emt 0:00:16]} Qxc7 {[%emt 0:00:02]} 22. Rdf1 {[%emt 0:00:38]} O-O-O {[%emt 0:01:29]} (22... Ke7 $142) 23. a4 {[%emt 0:03:51]} Qb8 {[%emt 0:09:34]} (23... Kd7 $16 {was called for.}) 24. axb5 $18 {[%emt 0:00:22]} axb5 {[%emt 0:00:30]} 25. Na5 {[%emt 0:02:57]} Bd7 {[%emt 0:02:24]} 26. Bd1 {[%emt 0:03:28]} (26. Nxb5 $18 {is more deadly. Threatens to win with Nd6+.} cxb5 27. c6) 26... Rh6 {[%emt 0:03:44] [#]} (26... Rdg8 $16) 27. Ne2 {[%emt 0:00:34]} (27. Re1 $1 $18) 27... Rdh8 {[%emt 0:01:06]} 28. Nf4 {[%emt 0:00:13]} Kc7 {[%emt 0:02:40] A mistake that costs the game.} (28... Ng8 $16) 29. Qd2 {[%emt 0:01:00]} Qe8 {[%emt 0:06:51]} 30. Re1 {[%emt 0:02:53]} Ng8 {[%emt 0:04:18]} 31. Bb3 {[%emt 0:01:41]} Ne7 {[%emt 0:02:14]} 32. Ra1 {[%emt 0:00:21]} Nf6 {[%emt 0:06:28]} 33. Ra3 {[%emt 0:01:43]} h4 {[%emt 0:02:30]} 34. Rha1 {[%emt 0:00:27] Some like it hot. White has more active pieces.} Qb8 {[%emt 0:01:30] Wards off Nb7} 35. Bd1 {[%emt 0:01:30] Dodges Nh5. Nb3 is the strong threat.} h3 {[%emt 0:04:41]} (35... Bc8 $16 {might work better.} 36. Nb3 Bb7) 36. gxh3 {[%emt 0:00:05] Black must now prevent Nb3.} Bxh3 $2 {[%emt 0:00:16]} (36... Bc8 37. Qe1 Kd7) 37. Nb3 {[%emt 0:04:13] White is clearly winning.} Kb7 {[%emt 0:02:29] Wards off Ra7+} (37... Rc8 $142 38. Ra7+ Kd8) 38. Kc3 {[%emt 0:00:10] [#] Hoping for Qa2.} Nc8 {[%emt 0:02:11]} 39. Qa2 {[%emt 0:00:28] And now Ra8 would win.} Kc7 {[%emt 0:01:15]} 40. Ra8 {[%emt 0:11:06]} Qb7 {[%emt 0:00:03]} 41. Qd2 {[%emt 0:00:33]} Kd7 {[%emt 0:04:20]} 42. R1a6 {[%emt 0:01:26]} Qc7 {[%emt 0:00:40]} 43. Na5 {[%emt 0:00:39]} Ng4 {[%emt 0:05:20]} 44. Nxh3 {[%emt 0:00:08]} f5 {[%emt 0:00:13]} 45. Nf4 {[%emt 0:02:16] Weighted Error Value: White=0.27 (precise) /Black=0.42.  Mistake:       	White=5     	Black=10     Inaccurate:     	---       	Black=4      OK:         	White=14    	Black=8      Best:        	White=2     	---} 1-0

[Event "12th Senioren-Cup Tegernsee 2024"]
[Site "Rottach-Egern"]
[Date "2024.04.10"]
[Round "5.5"]
[White "Cordts, Ingo"]
[Black "Wenner, Tobias"]
[Result "1/2-1/2"]
[ECO "D35"]
[WhiteElo "2225"]
[BlackElo "2051"]
[Annotator "TA"]
[PlyCount "81"]
[EventDate "2024.04.02"]
[EventType "swiss"]
[EventCountry "GER"]
[SourceTitle "playchess.com"]
[Source "ChessBase"]
[SourceQuality "1"]
[TimeControl "7800+30"]

{[%evp 16,81,50,25,29,18,55,28,45,13,17,13,18,14,15,8,16,6,30,12,23,20,31,26,26,27,43,27,27,18,23,25,60,64,62,62,60,54,62,15,14,0,57,13,39,0,41,41,62,18,60,37,30,0,75,0,57,0,0,0,57,0,0,0,57,0,0,0]} 1. d4 {[%emt 0:00:04]} Nf6 {[%emt 0:00:10]} 2. c4 {[%emt 0:00:08]} e6 {[%emt 0:00:20]} 3. Nc3 {[%emt 0:04:54]} d5 {[%emt 0:02:28]} 4. cxd5 {[%emt 0:01:56]} exd5 {[%emt 0:00:15]} 5. Bg5 {[%emt 0:00:07]} Be7 {[%emt 0:01:16]} 6. e3 {[%emt 0:00:11]} c6 {[%emt 0:01:43]} 7. Bd3 {[%emt 0:00:10]} Bg4 {[%emt 0:05:01]} 8. Qc2 {[%emt 0:05:18]} Nbd7 {[%emt 0:02:40]} 9. Nge2 {[%emt 0:00:53]} h6 {[%emt 0:09:31]} 10. Bf4 {[%emt 0:04:26]} Nf8 {[%emt 0:05:13]} 11. h3 {[%emt 0:09:30]} Bh5 {[%emt 0:00:38] White has an edge.} 12. Ng3 {[%emt 0:05:04]} Bg6 {[%emt 0:00:13]} 13. Nf5 {[%emt 0:01:16]} Bxf5 {[%emt 0:06:10]} 14. Bxf5 {[%emt 0:00:02]} Bd6 {[%emt 0:00:19]} 15. Bxd6 {[%emt 0:20:26]} Qxd6 {[%emt 0:00:20]} 16. O-O {[%emt 0:00:35]} Ne6 {[%emt 0:06:41]} 17. b4 {[%emt 0:05:38]} O-O {[%emt 0:00:47]} 18. Rab1 {[%emt 0:04:44][%cal Ba1b1,Bb1b3,Bb3c3,Bc3c5][%mdl 32]} Rfc8 {[%emt 0:03:10]} 19. Na4 {[%emt 0:06:29]} b6 {[%emt 0:01:37][%cal Bb7b6,Bb6b5][%mdl 32]} 20. Rfc1 {[%emt 0:01:57]} Rc7 {[%emt 0:01:58]} 21. Rb3 {[%emt 0:04:37]} Rac8 {[%emt 0:00:41]} 22. a3 {[%emt 0:02:21]} Nd7 {[%emt 0:01:34]} 23. Rc3 {[%emt 0:02:04]} b5 {[%emt 0:07:04]} 24. Bxe6 {[%emt 0:03:41]} Qxe6 {[%emt 0:01:01]} 25. Nc5 {[%emt 0:00:52]} Nxc5 {[%emt 0:00:09]} 26. Rxc5 {[%emt 0:00:17]} (26. dxc5 a5 $11) 26... a6 {[%emt 0:00:43] [#]} 27. e4 {[%emt 0:12:19]} dxe4 $11 {[%emt 0:07:36]} 28. d5 {[%emt 0:00:52]} Qg6 {[%emt 0:01:46]} ({Black should play} 28... Qe7 $11) 29. Qc3 {[%emt 0:04:11][%cal Rc5c6][%mdl 1024] White has compensation.} Qd6 $1 {[%emt 0:02:56]} 30. g3 {[%emt 0:08:28]} g6 {[%emt 0:02:19][%cal Oe4e3]} 31. Kg2 {[%emt 0:01:32]} h5 {[%emt 0:03:15]} (31... cxd5 $2 32. Rxc7 Rxc7 33. Qxc7 $18) (31... e3 32. fxe3 (32. dxc6 e2 $11) 32... Re8 33. Qd4 (33. dxc6 Qe6 $11)) 32. h4 {[%emt 0:01:26][%cal Rc5c6]} (32. dxc6 Qe6 $11) 32... Kh7 {[%emt 0:05:45]} (32... cxd5 $2 33. Rxc7 Re8 34. Qd4 $18) (32... e3 $6 33. fxe3 (33. Rxc6 Qxd5+ 34. Kf1 Rxc6) 33... Qe7 34. Rxc6 (34. dxc6 Rd8 $14) 34... Rxc6 35. dxc6 $16) 33. Rc2 {[%emt 0:01:00]} (33. dxc6 Qe6 $11) 33... Kg8 {[%emt 0:00:48]} (33... e3 34. fxe3 (34. dxc6 exf2 35. Rxf2 Qe6 $11) 34... Qe7 35. Kf2 $16 (35. Rxc6 Qe4+ 36. Kf2 Qf5+ 37. Ke2 Qg4+ 38. Kf2 Qf5+ 39. Kg1 Rxc6 $14)) 34. Rc1 {[%emt 0:00:24]} Kh7 {[%emt 0:00:08]} (34... cxd5 $2 35. Rxc7 Re8 36. Qd4 $18) (34... e3 $6 35. fxe3 (35. Rxc6 $2 Qxd5+ 36. Kg1 Rxc6 $19) 35... Re7 (35... Qe7 36. Kf3 $16) 36. Qd4 $16 (36. dxc6 Qe6 $14)) 35. Rc2 {[%emt 0:00:04]} (35. dxc6 Qe6 $11) 35... Kg8 $1 {[%emt 0:00:06]} (35... e3 $6 36. fxe3 (36. dxc6 exf2 37. Rxf2 Qe6 $11) 36... Qe7 37. Kf2 $16 (37. Rxc6 Qe4+ 38. Kg1 Rxc6 $14) (37. dxc6 Qe6 $11)) 36. dxc6 {[%emt 0:01:45]} (36. Rxc6 $14 Rxc6 37. dxc6) 36... Qe6 {[%emt 0:04:06]} 37. Rd2 {[%emt 0:02:51]} Kh7 {[%emt 0:01:06] Black is weak on the dark squares} (37... Rxc6 $2 38. Rxc6 Qxc6 39. Rd8+ Rxd8 40. Qxc6 $18) (37... e3 $1 $11 38. Qxe3 Qxe3 39. fxe3 Rxc6) 38. Rc2 {[%emt 0:04:52]} (38. Rdd5 $1 $14 Kg8 (38... Rxc6 $2 {perishes.} 39. Rxh5+ gxh5 40. Rxh5+ $18) 39. Re5) 38... Kg8 {[%emt 0:01:15]} 39. Rd2 {[%emt 0:00:05]} Kh7 {[%emt 0:00:07]} (39... Rxc6 $2 {is the wrong capture.} 40. Rxc6 Qxc6 41. Rd8+ Rxd8 42. Qxc6 $18) (39... e3 $11 40. Qxe3 Qxe3 41. fxe3 Rxc6) 40. Rc2 {[%emt 0:01:40]} ({White should try} 40. Rdd5 $1 $14 Kg8 (40... Rxc6 $2 {loses.} 41. Rxh5+ gxh5 42. Rxh5+ $18) 41. Re5) 40... Kg8 {[%emt 0:00:05]} 41. Rd2 {[%emt 0:21:51] Weighted Error Value: White=0.22 (precise) /Black=0.15 (very precise) .  Mistake:       	White=4     	Black=3      Inaccurate:     	White=5     	Black=4      OK:         	White=6     	Black=10     Best:        	---       	Black=1      Strong:       	---       	Black=2} 1/2-1/2